bitfinex-derivatives/quotes_ETHF0:USTF0_20251001
["timestamp","ask_amount","ask_price","bid_price","bid_amount"]
[1759304701929,0.43421,4144.2,4144.1,0.74942]
[1759304702135,0.4342,4144.3,4144.2,1.18261]
[1759304702337,0.43413,4145.0,4144.9,0.7484]
[1759304702534,2.07070178,4145.0,4144.9,0.7484]
[1759304702830,2.07070178,4145.0,4144.9,0.5394]
[1759304703035,2.07070178,4145.0,4144.9,0.7484]
[1759304703843,1.20145,4144.8,4144.7,0.5572]
[1759304704040,1.20147,4144.6,4144.5,0.64485303]
[1759304704245,0.65621,4144.2,4144.1,4.07685303]
[1759304704539,1.20151,4144.2,4144.1,4.60105303]
[1759304704746,2.07078178,4144.2,4144.1,4.60105303]
[1759304705047,2.07078178,4144.2,4144.1,5.03527303]
[1759304705845,0.86927178,4144.2,4144.1,5.03527303]
[1759304706044,1.51388178,4144.2,4144.1,4.60105303]
[1759304706244,1.51388178,4144.2,4144.1,5.03527303]
[1759304706547,1.84878178,4144.2,4144.1,4.39042]
[1759304707138,0.64458,4144.6,4144.5,0.3526]
[1759304707447,2.07075178,4144.6,4144.5,0.7484]
[1759304707743,2.07075178,4144.6,4144.5,0.5394]
[1759304707942,0.43421,4144.2,4144.1,4.72006303]
[1759304708138,1.30347178,4144.3,4144.2,0.86741]
[1759304708341,1.30347178,4144.3,4144.2,1.18261]
[1759304708837,1.51387178,4144.3,4144.2,1.18261]
[1759304709247,1.51387178,4144.3,4144.2,0.7484]
[1759304709436,1.84877178,4144.3,4144.2,0.7484]
[1759304710951,0.6446,4144.3,4144.2,0.7484]
[1759304711452,1.2015,4144.3,4144.2,0.5394]
[1759304712946,0.43422,4144.1,4144.0,0.64485303]
[1759304713145,1.20153,4144.0,4143.9,1.18425303]
[1759304714352,1.20153,4144.0,4143.9,0.7484]
[1759304716551,0.2104,4144.4,4144.3,0.2242]
[1759304716846,1.44449,4144.4,4144.3,0.7484]
[1759304718147,1.20152,4144.1,4144.0,0.5394]
[1759304718349,2.20799483,4144.1,4144.0,0.7484]
[1759304718543,2.20799483,4144.1,4144.0,0.5394]
[1759304718744,4.5363,4144.4,4144.3,0.4332]
[1759304718745,0.43419,4144.4,4144.3,0.4332]
[1759304718953,0.43419,4144.4,4144.3,0.7484]
[1759304719252,1.20149,4144.4,4144.3,0.5394]
[1759304719549,1.20151,4144.2,4144.1,0.5394]
[1759304720141,1.20151,4144.2,4144.1,0.7484]
[1759304722152,0.64461,4144.2,4144.1,0.7484]
[1759304722352,0.64461,4144.2,4144.1,4.60091321]
[1759304724153,0.4342,4144.4,4144.1,3.9562]
[1759304724452,0.43419,4144.4,4144.3,0.7897]
[1759304725450,1.20259,4144.4,4144.3,0.7897]
[1759304727957,0.43419,4144.4,4144.3,0.7897]
[1759304728555,1.20259,4144.4,4144.3,0.7897]
[1759304729451,1.2026,4144.3,4144.2,0.64523255]
[1759304729652,1.20261,4144.2,4144.1,1.20643255]
[1759304729860,2.20908483,4144.2,4144.1,1.20643255]
[1759304730054,2.20908483,4144.2,4144.1,1.43493255]
[1759304730453,2.20908483,4144.2,4144.1,0.7897]
[1759304736651,0.3267,4144.6,4144.1,1.64950404]
[1759304736852,0.98218,4144.5,4144.4,1.21950878]
[1759304737058,1.20258,4144.5,4144.4,1.43640878]
[1759304741458,0.87589,4144.4,4144.3,0.64670878]
[1759304741656,1.2026,4144.3,4144.2,0.64670878]
[1759304741857,1.20261,4144.2,4144.1,0.64670878]
[1759304742063,1.44561,4144.2,4144.1,0.64670878]
[1759304742464,1.44561,4144.2,4144.1,1.43640878]
[1759304743357,1.44561,4144.2,4144.1,1.20790878]
[1759304743658,1.44561,4144.2,4144.1,0.86360878]
[1759304744161,1.44561,4144.2,4144.1,1.20790878]
[1759304744362,1.44561,4144.2,4144.1,1.43640878]
[1759304744766,1.20261,4144.2,4144.1,1.43640878]
[1759304744966,1.44561,4144.2,4144.1,1.43640878]
[1759304747173,1.20261,4144.2,4144.1,1.43640878]
[1759304749664,0.43421,4144.2,4144.1,1.22392]
[1759304750171,0.4342,4144.4,4144.3,0.87959]
[1759304750359,0.4342,4144.4,4144.3,1.22389]
[1759304750765,1.73545349,4146.1,4145.0,0.8886]
[1759304750964,1.20244,4145.9,4145.8,0.7897]
[1759304751165,1.20244,4145.9,4145.8,0.4454]
[1759304752069,1.20482177,4145.9,4145.8,0.4454]
[1759304752871,0.43406,4145.7,4145.6,0.6443405]
[1759304753073,0.87576,4145.7,4145.6,0.2169]
[1759304753263,1.19476,4145.7,4145.6,0.2169]
[1759304754690,0.7607,4145.7,4145.6,0.4411]
[1759304754975,0.5333,4145.7,4145.6,0.7567]
[1759304756473,0.759,4145.7,4145.6,0.4411]
[1759304757078,0.759,4145.7,4145.6,0.2169]
[1759304757972,0.759,4145.7,4145.5,3.2078]
[1759304757973,1.19307,4145.6,4145.5,3.2078]
[1759304758167,1.19307,4145.6,4144.8,1.29057212]
[1759304758168,1.19312,4145.2,4144.9,0.6443405]
[1759304758373,0.8952,4145.0,4144.9,0.69]
[1759304758683,0.8952,4145.0,4144.9,1.12414]
[1759304758978,0.8952,4145.0,4144.9,1.43974]
[1759304759777,0.8952,4145.0,4144.9,1.12414]
[1759304760278,0.8952,4145.0,4144.9,0.69]
[1759304760578,0.43414,4144.9,4144.8,3.2078]
[1759304760770,0.75314,4144.9,4144.8,3.4286]
[1759304760975,0.759,4144.9,4144.8,3.9684]
[1759304761470,0.759,4144.9,4144.8,4.40255]
[1759304761870,1.19314,4144.9,4144.8,3.9684]
[1759304762071,1.19314,4144.9,4144.8,3.6528]
[1759304762272,1.19314,4144.9,4144.8,4.08695]
[1759304762471,1.33026,4145.3,4145.1,0.65832]
[1759304762472,0.5333,4145.2,4145.1,0.65832]
[1759304762673,0.319,4145.2,4145.1,1.19472]
[1759304763081,0.1362,4145.5,4145.4,0.43408]
[1759304763275,0.2143,4145.6,4145.5,0.97386]
[1759304763472,0.2143,4145.6,4145.5,1.19466]
[1759304763678,0.5333,4145.6,4145.5,1.19466]
[1759304765081,1.19306,4145.6,4145.5,0.445]
[1759304765583,0.759,4145.6,4145.5,0.87907]
[1759304765777,0.759,4145.6,4145.5,1.19467]
[1759304765984,1.19306,4145.6,4145.5,0.87907]
[1759304767082,1.19306,4145.6,4145.5,0.2208]
[1759304767286,1.19306,4145.6,4145.5,0.65487]
[1759304768990,0.759,4145.6,4145.5,1.19467]
[1759304769590,1.19306,4145.6,4145.5,1.19467]
[1759304769890,0.759,4145.6,4145.5,1.19467]
[1759304771692,0.53568177,4145.9,4145.8,1.19464]
[1759304771885,0.32138177,4145.9,4145.8,4.40244]
[1759304772190,0.00238177,4145.9,4145.8,4.40244]
[1759304772687,0.53568177,4145.9,4145.8,4.40244]
[1759304772987,0.76138177,4145.9,4145.8,4.08684]
[1759304774090,0.76138177,4145.9,4145.8,4.40244]
[1759304775290,0.76138177,4145.9,4145.8,4.08684]
[1759304777490,0.76138177,4145.9,4145.8,4.40244]
[1759304777798,1.19541177,4145.9,4145.8,4.08684]
[1759304778098,1.19541177,4145.9,4145.8,3.86264]
[1759304778494,0.64834,4145.8,4145.7,0.88884354]
[1759304778695,0.44,4145.6,4145.4,0.64384354]
[1759304778890,2.19828391,4145.5,4145.4,1.07792354]
[1759304779091,2.19828391,4145.5,4145.4,0.43408]
[1759304779293,1.76421391,4145.5,4145.4,1.52292354]
[1759304779594,2.19828391,4145.5,4145.4,1.52292354]
[1759304779794,2.19828391,4145.5,4145.4,0.445]
[1759304780092,1.32932,4145.0,4144.9,0.86464354]
[1759304780296,1.19313,4144.9,4144.8,0.64384354]
[1759304780487,0.43415,4144.7,4144.6,0.64384354]
[1759304780689,1.19315,4144.7,4144.6,1.08884354]
[1759304781401,2.06216391,4144.7,4144.6,0.86464354]
[1759304781599,2.06216391,4144.7,4144.6,0.64384354]
[1759304782001,0.87416,4144.6,4144.5,1.10964354]
[1759304782292,1.19316,4144.6,4144.5,1.33604664]
[1759304782497,1.19316,4144.6,4144.5,1.65164664]
[1759304783099,0.96746,4144.6,4144.5,1.65164664]
[1759304784002,0.319,4144.6,4144.5,1.65164664]
[1759304784199,0.74693,4144.9,4144.8,0.7697]
[1759304784506,0.97003,4144.9,4144.8,0.7697]
[1759304784703,1.19323,4144.9,4144.8,0.428]
[1759304784901,1.19323,4144.9,4144.8,0.2193]
[1759304785809,1.19326,4144.6,4144.5,1.11023126]
[1759304786001,1.19326,4144.6,4144.5,1.31893126]
[1759304786202,1.19326,4144.6,4144.5,1.66063126]
[1759304788009,0.3128,4144.6,4144.5,2.09481126]
[1759304788208,0.43417,4144.6,4144.5,2.09481126]
[1759304788701,0.43417,4144.6,4144.5,1.66063126]
[1759304788906,1.19327,4144.6,4144.5,0.428]
[1759304789308,1.19327,4144.6,4144.5,0.2193]
[1759304790107,1.19327,4144.6,4144.1,0.64593126]
[1759304790108,0.43421,4144.2,4144.1,0.64593126]
[1759304790311,1.19332,4144.1,4144.0,1.07393126]
[1759304790504,1.19332,4144.1,4144.0,0.7697]
[1759304791002,1.19332,4144.1,4144.0,0.428]
[1759304792308,1.19332,4144.1,4144.0,1.20393]
[1759304792722,1.19332,4144.1,4144.0,0.7697]
[1759304793409,1.19332,4144.1,4144.0,0.428]
[1759304793614,0.88055,4143.8,4143.7,3.4271]
[1759304793810,1.19335,4143.8,4143.7,3.4271]
[1759304794123,1.01578,4143.5,4143.4,0.86762611]
[1759304794419,1.32858,4143.5,4143.4,0.22169485]
[1759304795527,1.32858,4143.5,4143.4,0.77209485]
[1759304798733,1.32858,4143.5,4143.4,1.20638485]
[1759304799433,1.32858,4143.5,4143.4,0.77209485]
[1759304800134,1.32858,4143.5,4143.4,1.20638485]
[1759304800832,1.32858,4143.5,4143.4,0.77209485]
[1759304801035,1.32858,4143.5,4143.4,0.43039485]
[1759304801232,1.32858,4143.5,4143.4,0.22169485]
[1759304802133,1.32858,4143.5,4143.4,0.00239485]
[1759304803830,2.19759391,4143.5,4143.4,0.00239485]
[1759304807241,7.19759391,4143.5,4143.4,0.00239485]
[1759304807431,7.44159391,4143.5,4143.4,0.00239485]
[1759304813041,7.19759391,4143.5,4143.4,0.00239485]
[1759304813239,7.44159391,4143.5,4143.4,0.00239485]
[1759304818043,2.19759391,4143.5,4143.4,0.00239485]
[1759304818244,2.44159391,4143.5,4143.4,0.00239485]
[1759304821248,2.19759391,4143.5,4143.4,0.00239485]
[1759304821546,2.44159391,4143.5,4143.4,0.00239485]
[1759304821750,2.44159391,4143.5,4143.4,0.43668485]
[1759304822343,0.5359,4143.5,4143.4,1.17888485]
[1759304822540,0.3128,4143.5,4143.4,1.17888485]
[1759304822742,3.2078,4143.6,4143.5,0.74548]
[1759304822936,3.2078,4143.6,4143.5,1.82299981]
[1759304823150,3.5385,4143.6,4143.5,1.82299981]
[1759304823347,3.7513,4143.6,4143.5,1.82299981]
[1759304823546,3.9697,4143.6,4143.5,1.51179981]
[1759304824246,4.40397,4143.6,4143.5,1.51179981]
[1759304824446,3.9697,4143.6,4143.5,1.51179981]
[1759304824950,4.40397,4143.6,4143.5,1.51179981]
[1759304825148,4.40397,4143.6,4143.5,0.64651981]
[1759304825345,1.33188,4143.5,4143.4,0.64891466]
[1759304825650,1.57588,4143.5,4143.4,0.00239485]
[1759304826850,1.57588,4143.5,4143.4,0.43668485]
[1759304827944,1.1416,4143.5,4143.4,0.65518485]
[1759304828149,1.1416,4143.5,4143.4,1.17888485]
[1759304828349,0.8976,4143.5,4143.4,1.17888485]
[1759304828545,0.5435,4143.5,4143.4,1.82540466]
[1759304830354,0.5435,4143.5,4143.4,1.17888485]
[1759304831256,0.6792,4143.5,4143.4,1.17888485]
[1759304831751,1.33188,4143.5,4143.4,0.74459485]
[1759304831957,1.33188,4143.5,4143.4,0.64999877]
[1759304832251,1.33188,4143.5,4143.4,0.00239485]
[1759304832252,1.57588,4143.5,4143.4,0.00239485]
[1759304834254,2.5828573,4143.5,4143.4,0.00239485]
[1759304835056,1.57588,4143.5,4143.4,0.86768485]
[1759304835462,1.57588,4143.5,4143.4,1.82654078]
[1759304835851,1.57588,4143.5,4143.4,1.17888485]
[1759304836356,1.57588,4143.5,4143.4,0.86768485]
[1759304837360,1.57588,4143.5,4143.4,1.17888485]
[1759304837551,1.57588,4143.5,4143.4,0.65518485]
[1759304837754,1.57588,4143.5,4143.4,0.00239485]
[1759304837755,1.33188,4143.5,4143.4,0.00239485]
[1759304837961,2.5828573,4143.5,4143.4,0.649764]
[1759304839065,2.5828573,4143.5,4143.4,0.00239485]
[1759304839665,0.43433,4143.1,4143.0,0.64736915]
[1759304839864,1.32274,4143.0,4142.9,0.64736915]
[1759304840764,1.32274,4143.0,4142.9,0.65019936]
[1759304840972,1.32274,4143.0,4142.9,0.00283021]
[1759304845759,6.32274,4143.0,4142.9,0.00283021]
[1759304846156,6.32274,4143.0,4142.0,0.64736915]
[1759304846157,0.43443,4142.1,4142.0,0.64736915]
[1759304846365,1.35784,4142.0,4141.9,1.41646915]
[1759304846564,1.35784,4142.0,4141.9,1.07606915]
[1759304846866,1.35784,4142.0,4141.9,1.51051915]
[1759304847070,1.35957457,4142.0,4141.9,1.85290996]
[1759304847665,1.00397457,4142.0,4141.9,1.85290996]
[1759304848068,1.00397457,4142.0,4141.9,1.41845996]
[1759304848270,1.13267457,4142.0,4141.9,1.41845996]
[1759304848472,1.13267457,4142.0,4141.9,1.20554081]
[1759304849581,0.34133457,4142.0,4141.9,1.20554081]
[1759304849770,0.43617457,4142.0,4141.9,1.20554081]
[1759304849973,0.77577457,4142.0,4141.9,1.20554081]
[1759304850272,1.00397457,4142.0,4141.9,1.20554081]
[1759304851475,0.77577457,4142.0,4141.9,1.20554081]
[1759304852472,1.00397457,4142.0,4141.9,1.20554081]
[1759304853879,0.00173457,4142.0,4141.9,1.20554081]
[1759304854382,0.34133457,4142.0,4141.9,1.20554081]
[1759304855079,0.00173457,4142.0,4141.9,1.20554081]
[1759304855378,0.43617457,4142.0,4141.9,1.20554081]
[1759304855571,0.77577457,4142.0,4141.9,1.20554081]
[1759304856578,0.34133457,4142.0,4141.9,1.20554081]
[1759304857076,0.00173457,4142.0,4141.9,1.20554081]
[1759304857269,0.43437,4142.7,4142.5,0.2101]
[1759304857474,0.3396,4142.8,4142.7,0.43436]
[1759304857684,0.3396,4142.8,4142.7,0.86306]
[1759304858174,0.3396,4142.8,4142.7,1.20346]
[1759304858377,0.34177694,4142.8,4142.7,1.20346]
[1759304858881,0.00217694,4142.8,4142.7,1.20346]
[1759304859082,0.43653694,4142.8,4142.7,1.20346]
[1759304859381,0.43653694,4142.8,4142.7,1.84958216]
[1759304859582,0.77613694,4142.8,4142.7,1.84958216]
[1759304860783,0.34177694,4142.8,4142.7,1.84958216]
[1759304860982,0.00217694,4142.8,4142.7,1.84958216]
[1759304861379,0.00217694,4142.8,4142.7,7.2104373]
[1759304861878,0.77389,4143.4,4143.3,0.7691]
[1759304862085,1.00209,4143.4,4143.3,0.7691]
[1759304862879,1.00417457,4143.4,4143.3,0.7691]
[1759304863982,1.23107457,4143.4,4143.3,0.7691]
[1759304864284,1.23107457,4143.4,4143.3,1.2034]
[1759304864984,1.23107457,4143.4,4143.3,0.4287]
[1759304865185,1.23107457,4143.4,4143.3,0.863]
[1759304865685,1.23107457,4143.4,4143.3,0.4287]
[1759304865986,1.229,4143.3,4143.2,0.244]
[1759304866283,0.66251,4143.2,4143.1,0.64616354]
[1759304866482,1.22901,4143.2,4143.1,0.64616354]
[1759304866688,0.7947,4143.2,4143.1,1.84958354]
[1759304866883,0.77598457,4143.4,4143.3,1.2034]
[1759304867187,1.00418457,4143.4,4143.3,1.2034]
[1759304867388,1.23108457,4143.4,4143.3,1.2034]
[1759304867684,1.23108457,4143.4,4143.3,0.4287]
[1759304868386,1.23108457,4143.4,4143.3,0.2101]
[1759304868783,1.22901,4143.2,4143.1,1.29058354]
[1759304869889,1.22901,4143.2,4143.1,0.64616354]
[1759304870282,0.43432,4143.1,4143.0,0.89016354]
[1759304870486,1.22902,4143.1,4143.0,0.89016354]
[1759304870790,0.90264,4143.0,4142.9,3.2078]
[1759304870999,0.90264,4143.0,4142.9,3.6365]
[1759304871000,1.35774,4143.0,4142.9,3.6365]
[1759304871182,1.35774,4143.0,4142.9,3.9769]
[1759304871687,1.35774,4143.0,4142.9,3.6365]
[1759304877591,1.35774,4143.0,4142.9,3.4179]
[1759304877891,1.35774,4143.0,4142.9,3.4192]
[1759304878092,0.87495,4142.9,4142.8,0.89016354]
[1759304878390,1.21095,4142.9,4142.8,1.10156354]
[1759304878986,1.21095,4142.9,4142.8,0.85756354]
[1759304879294,1.21095,4142.9,4142.4,3.2078]
[1759304879295,1.34789,4142.5,4142.4,3.2078]
[1759304879496,2.3548673,4142.5,4142.4,3.2078]
[1759304880295,1.34789,4142.5,4142.4,3.2078]
[1759304880488,1.34789,4142.5,4142.4,3.4192]
[1759304880688,1.34789,4142.5,4142.4,3.9626]
[1759304881085,1.34789,4142.5,4142.4,3.6418]
[1759304881292,1.34789,4142.5,4142.4,0.434]
[1759304882489,1.34789,4142.5,4142.4,0.2114]
[1759304883894,1.34789,4142.5,4142.4,0.7548]
[1759304884389,1.34789,4142.5,4142.4,0.434]
[1759304885889,1.34789,4142.5,4142.3,0.64616354]
[1759304885890,1.211,4142.4,4142.3,0.64616354]
[1759304886195,0.1369,4142.5,4142.2,0.244]
[1759304886196,1.21101,4142.3,4142.2,0.64616354]
[1759304886589,2.2179873,4142.3,4142.2,0.64616354]
[1759304886788,0.1369,4142.0,4141.9,4.09995435]
[1759304886991,1.34794,4142.0,4141.9,4.31135435]
[1759304887795,1.34794,4142.0,4141.9,4.53395435]
[1759304888790,1.34794,4142.0,4141.9,4.85475435]
[1759304889697,1.34794,4142.0,4141.9,4.53395435]
[1759304890700,1.34794,4142.0,4141.9,4.28995435]
[1759304891001,1.34794,4142.0,4141.9,4.61075435]
[1759304891194,1.34794,4142.0,4141.9,3.96459081]
[1759304892199,1.34794,4142.0,4141.9,3.64379081]
[1759304892405,1.34794,4142.0,4141.9,3.42119081]
[1759304895599,1.34794,4142.0,4141.9,0.00199081]
[1759304895805,4.55574,4142.0,4141.9,0.00199081]
[1759304896002,4.79974,4142.0,4141.9,0.00199081]
[1759304896305,10.67078899,4142.0,4141.9,0.00199081]
[1759304896503,1.21113,4141.2,4141.1,0.434]
[1759304897401,1.21113,4141.2,4141.1,0.43634107]
[1759304897602,1.21113,4141.2,4141.1,0.21374107]
[1759304898502,1.21113,4141.2,4141.1,0.43634107]
[1759304899007,1.21113,4141.2,4141.1,0.77754107]
[1759304900594,1.21113,4141.2,4141.1,1.02154107]
[1759304904305,2.08217899,4141.2,4141.1,0.45774107]
[1759304907708,2.08217899,4141.2,4141.1,1.01924107]
[1759304908309,1.86757899,4141.2,4141.1,1.01924107]
[1759304909011,2.08117899,4141.2,4141.1,1.01924107]
[1759304911210,2.08117899,4141.2,4141.1,0.68714107]
[1759304914411,2.08117899,4141.2,4141.1,1.12167107]
[1759304914608,1.64664899,4141.2,4141.1,0.87767107]
[1759304915614,0.336,4141.2,4141.1,1.45277107]
[1759304915813,0.336,4141.2,4141.1,2.31432246]
[1759304916025,0.5488,4141.2,4141.1,2.31432246]
[1759304917714,0.336,4141.2,4141.1,2.31432246]
[1759304918019,1.54144899,4141.9,4141.8,0.64946]
[1759304918411,1.87924899,4141.9,4141.8,0.64946]
[1759304918608,1.0082,4141.9,4141.8,1.21096]
[1759304918820,1.0082,4141.9,4141.8,0.87886]
[1759304919021,1.44265,4141.9,4141.8,0.87886]
[1759304919317,1.44265,4141.9,4141.8,0.64946]
[1759304919517,2.31369899,4141.9,4141.8,0.64946]
[1759304921019,2.31369899,4141.9,4141.8,0.215]
[1759304921221,1.19867,4141.7,4141.6,1.29749615]
[1759304922218,1.19867,4141.7,4141.6,0.64948]
[1759304924608,0.7642,4141.7,4141.6,0.64948]
[1759304925716,0.7642,4141.7,4141.6,1.21098]
[1759304925916,0.3378,4141.7,4141.6,1.21098]
[1759304926117,0.5506,4141.7,4141.6,1.21098]
[1759304926412,0.3378,4141.7,4141.6,1.21098]
[1759304927311,0.5506,4141.7,4141.6,1.21098]
[1759304928327,0.7642,4141.7,4141.6,1.21098]
[1759304929930,0.7642,4141.7,4141.6,0.87888]
[1759304930135,0.5506,4141.7,4141.6,1.21098]
[1759304930432,0.3378,4141.7,4141.6,1.21098]
[1759304930924,0.5506,4141.7,4141.6,1.21098]
[1759304931135,1.19867,4141.7,4141.6,0.87888]
[1759304932625,1.19867,4141.7,4141.6,0.43448]
[1759304934237,1.19867,4141.7,4141.6,1.21538]
[1759304934533,1.19867,4141.7,4141.6,0.87308]
[1759304936735,0.7642,4141.7,4141.6,0.87308]
[1759304937434,0.7642,4141.7,4141.6,1.21538]
[1759304937729,0.5506,4141.7,4141.6,1.21538]
[1759304937935,0.3378,4141.7,4141.6,2.07940153]
[1759304938235,1.20917,4141.7,4141.6,1.73710153]
[1759304938539,0.7747,4141.7,4141.6,1.73710153]
[1759304938933,0.7747,4141.7,4141.6,2.07940153]
[1759304939829,1.20917,4141.7,4141.6,1.73710153]
[1759304940032,1.20917,4141.7,4141.6,2.07940153]
[1759304940033,0.3378,4141.7,4141.6,2.07940153]
[1759304940232,0.5607,4141.7,4141.6,2.07940153]
[1759304940941,1.20917,4141.7,4141.6,1.73710153]
[1759304941639,1.20917,4141.7,4141.6,1.30262153]
[1759304942228,1.20917,4141.7,4141.6,1.73710153]
[1759304942834,1.20917,4141.7,4141.6,1.30262153]
[1759304943242,1.20917,4141.7,4141.6,0.4386]
[1759304944142,1.20917,4141.7,4141.6,0.87308]
[1759304944342,1.20917,4141.7,4141.6,0.4386]
[1759304944843,2.08021899,4141.7,4141.6,0.64948]
[1759304945742,1.20917,4141.7,4141.6,0.64948]
[1759304947146,1.20917,4141.7,4141.6,1.94005212]
[1759304949249,1.20917,4141.7,4141.6,2.16365212]
[1759304949647,1.20917,4141.7,4141.6,2.50595212]
[1759304950747,4.07884899,4142.7,4141.7,1.08619]
[1759304950945,4.07884899,4142.7,4141.6,2.16162111]
[1759304950946,1.00819,4142.5,4142.4,0.789]
[1759304951148,1.00819,4142.5,4142.4,2.08722492]
[1759304951342,1.00819,4142.5,4142.4,1.74492492]
[1759304951343,1.33409,4142.5,4142.4,1.74492492]
[1759304951547,1.33409,4142.5,4142.4,0.8811]
[1759304952049,0.8997,4142.5,4142.4,1.2234]
[1759304952249,1.33409,4142.5,4142.4,2.08679415]
[1759304952856,1.33409,4142.5,4142.4,1.65239415]
[1759304953255,1.33409,4142.5,4142.4,1.31009415]
[1759304953960,1.33409,4142.5,4142.4,1.74449415]
[1759304954351,1.33409,4142.5,4142.4,0.86339415]
[1759304954352,2.20513899,4142.5,4142.4,0.86339415]
[1759304954559,2.20513899,4142.5,4142.3,0.243]
[1759304954560,1.1972,4142.4,4142.3,1.54079415]
[1759304954858,1.1972,4142.4,4142.3,1.76389415]
[1759304955062,0.7628,4142.4,4142.3,1.76389415]
[1759304955361,1.1972,4142.4,4142.3,1.76389415]
[1759304956349,1.00794899,4142.5,4142.2,0.86339415]
[1759304956350,0.87131,4142.3,4142.2,0.86339415]
[1759304956555,2.06825899,4142.3,4142.2,0.86339415]
[1759304956755,2.06825899,4142.3,4142.2,1.52092415]
[1759304956756,1.63384899,4142.3,4142.2,1.52092415]
[1759304957457,1.63384899,4142.3,4142.2,2.08682415]
[1759304958259,0.7628,4142.3,4142.2,2.08682415]
[1759304958968,0.7628,4142.3,4142.2,1.74452415]
[1759304959767,0.7628,4142.3,4142.2,2.07192415]
[1759304961472,0.7628,4142.3,4142.2,1.74452415]
[1759304961662,0.7628,4142.3,4142.2,1.98752415]
[1759304964176,2.20455818,4142.3,4142.2,1.29782415]
[1759304964374,1.21203,4142.2,4142.1,1.54082415]
[1759304964565,1.21203,4142.2,4142.1,1.32407447]
[1759304964766,0.7776,4142.2,4142.1,1.32403804]
[1759304966776,0.7776,4142.2,4142.1,1.54154804]
[1759304967163,0.7776,4142.2,4142.1,2.08414804]
[1759304967367,0.557,4142.2,4142.1,2.08414804]
[1759304967868,0.3363,4142.2,4142.1,1.43754]
[1759304968275,0.557,4142.2,4142.1,1.43754]
[1759304968476,0.7776,4142.2,4142.1,1.43754]
[1759304969176,0.7776,4142.2,4142.1,4.64534]
[1759304972088,0.7776,4142.2,4142.1,4.31984]
[1759304972876,0.7776,4142.2,4142.1,4.64534]
[1759304973075,0.3363,4142.2,4142.1,4.64534]
[1759304973275,0.557,4142.2,4142.1,4.64534]
[1759304977183,0.557,4142.2,4142.1,5.50873415]
[1759304978285,0.7776,4142.2,4142.1,5.50873415]
[1759304980285,0.7776,4142.2,4142.1,4.64534]
[1759304982382,1.21203,4142.2,4142.1,4.64534]
[1759304983270,0.7776,4142.2,4142.1,4.64534]
[1759304983783,0.557,4142.2,4142.1,4.64534]
[1759304984986,3.2078,4142.7,4142.6,0.7601]
[1759304985286,1.21197,4142.7,4142.6,0.6776]
[1759304985479,1.21197,4142.7,4142.6,1.32632252]
[1759304986086,1.21197,4142.7,4142.6,0.6776]
[1759304986288,1.21197,4142.7,4142.6,1.11198]
[1759304986680,1.21197,4142.7,4142.6,1.43748]
[1759304991084,0.7776,4142.7,4142.6,1.43748]
[1759304991286,0.3363,4142.7,4142.6,2.30239847]
[1759304992174,1.73545349,4144.1,4142.8,0.4346]
[1759304992378,1.73545349,4144.1,4142.6,1.10791847]
[1759304992379,0.3363,4144.0,4143.9,0.43425]
[1759304992574,0.557,4144.2,4144.1,1.19433]
[1759304992784,0.99122,4144.2,4144.1,0.7601]
[1759304993184,0.99122,4144.2,4144.1,1.40737683]
[1759304993384,0.99122,4144.2,4144.1,1.4092594]
[1759304993385,0.99299228,4144.2,4144.1,1.4092594]
[1759304993585,0.99299228,4144.2,4144.1,1.8434894]
[1759304993786,0.55877228,4144.2,4144.1,1.8434894]
[1759304994291,0.55877228,4144.2,4144.1,1.19621257]
[1759304994494,0.00177228,4144.2,4144.1,1.19621257]
[1759304994683,0.00177228,4144.2,4144.1,1.8434894]
[1759304994884,0.32277228,4144.2,4144.1,1.8434894]
[1759304995294,0.32277228,4144.2,4144.1,1.19621257]
[1759304996993,0.55237228,4144.2,4144.1,1.19621257]
[1759304999785,1.21489228,4144.2,4144.1,1.19621257]
[1759305000096,1.21489228,4144.2,4144.1,0.87071257]
[1759305000796,1.21489228,4144.2,4144.1,0.43648257]
[1759305000998,1.21489228,4144.2,4144.1,0.00188257]
[1759305003288,6.21489228,4144.2,4144.1,0.00188257]
[1759305003481,0.43431,4143.3,4143.2,3.64212]
[1759305003688,1.21321,4143.3,4143.2,3.85352]
[1759305004595,1.21321,4143.3,4143.2,3.85562799]
[1759305008595,0.7789,4143.3,4143.2,4.07762799]
[1759305008793,1.21321,4143.3,4143.2,4.39572799]
[1759305010193,0.321,4143.3,4143.2,4.39572799]
[1759305010792,0.321,4143.5,4143.2,3.20990799]
[1759305011001,0.43429,4143.6,4143.5,1.18579]
[1759305011190,0.75529,4143.6,4143.5,1.18579]
[1759305011497,0.75528,4143.6,4143.5,1.18579]
[1759305012992,0.43428,4143.6,4143.5,1.18579]
[1759305013191,0.75528,4143.6,4143.5,1.18579]
[1759305013498,0.321,4143.6,4143.5,1.42879]
[1759305013891,0.2296,4143.9,4143.8,0.4334]
[1759305014091,0.5506,4143.9,4143.8,1.18575]
[1759305014293,0.98485,4143.9,4143.8,1.18575]
[1759305015398,0.98485,4143.9,4143.8,0.7515]
[1759305015599,1.21315,4143.9,4143.8,0.7515]
[1759305015800,1.21315,4143.9,4143.8,0.4334]
[1759305016401,1.21315,4143.9,4143.8,0.86766]
[1759305016702,1.21315,4143.9,4143.8,0.4334]
[1759305016903,1.21315,4143.9,4143.8,1.18576]
[1759305017294,1.21315,4143.9,4143.8,0.7515]
[1759305017694,1.21315,4143.9,4143.8,0.4334]
[1759305018002,0.321,4144.1,4144.0,0.4334]
[1759305018201,0.98483,4144.1,4144.0,1.18574]
[1759305019502,1.21313,4144.1,4144.0,1.18574]
[1759305020198,2.08302648,4144.1,4144.0,0.7515]
[1759305020899,2.08302648,4144.1,4144.0,0.4334]
[1759305021304,2.08302648,4144.1,4144.0,0.86764]
[1759305022606,2.08302648,4144.1,4144.0,1.18194]
[1759305024794,1.64879648,4144.1,4144.0,1.18194]
[1759305025004,2.08302648,4144.1,4144.0,1.18194]
[1759305027300,2.08302648,4144.1,4144.0,0.7477]
[1759305027607,2.08302648,4144.1,4144.0,0.4334]